Workbook

Sheet Plan1
A1: ANEXO I - PLANILHA ORÇAMENTÁRIA
A2: EDITAL 027/2015
A5: REFERÊNCIA CAPITAL SEGURADO | B5: Qt de Empregados* | C5: CAPITAL SEGURADO | D5: TAXA MENSAL DO SEGURO | E5: PRÊMIO MENSAL INDIVIDUAL (PMI) | F5: PRÊMIO MENSAL GLOBAL (PMG) | G5: PRÊMIO ANUAL GLOBAL (PAG)
A6: 70 X B01 (R$ 1.281,17) - FUNDAÇÃO | B6: 86 | C6: =70*1281.17 -> 89681.9 | D6: 0.008312 | E6: =C6*D6/10 -> 74.54359528 | F6: =E6*B6 -> 6410.749194
A7: 70 X B01 (R$ 1.281,17) - EMPREGADOS | B7: 367 | C7: =70*1281.17 -> 89681.9 | D7: 0.008312 | E7: =C7*D7/10 -> 74.54359528 | F7: =E7*B7 -> 27357.49947
A8: 70 X M01 (R$ 2.773,35) - FUNDAÇÃO | B8: 249 | C8: =70*2773.35 -> 194134.5 | D8: 0.008312 | E8: 161.3645964 | F8: =E8*B8 -> 40179.7845
A9: 70 X M01 (R$ 2.773,35) - EMPREGADOS | B9: 1406 | C9: =70*2773.35 -> 194134.5 | D9: 0.008312 | E9: 161.3645964 | F9: =E9*B9 -> 226878.6225
B10: =SUM(B6:B9) -> 2108 | C10: =SUM(C6:C8) -> 373498.3 | F10: =SUM(F6:F9) -> 300826.6557 | G10: =F10*12 -> 3609919.868
A11: 70 X B01 (R$ 1.281,17) - APOSENTADOS | B11: 25 | C11: 89681.9 | D11: 0.008312 | E11: =C11*D11/10 -> 74.54359528 | F11: =E11*B11 -> 1863.589882
A12: 70 X M01 (R$ 2.773,35) - APOSENTADOS | B12: 28 | C12: 194134.5 | D12: 0.008312 | E12: =C12*D12/10 -> 161.3645964 | F12: =E12*B12 -> 4518.208699
B13: =SUM(B11:B12) -> 53 | F13: =SUM(F11:F12) -> 6381.798581 | G13: =F13*12 -> 76581.58297
A14: TOTAL DE SEGURADOS | B14: =B10+B13 -> 2161 | G14: =G10+G13 -> 3686501.451

Sheet Plan2

Sheet Plan3
